[Event "ESP-ch Teams Honor 2024"]
[Site "Melilla"]
[Date "2024.10.12"]
[Round "1.11"]
[White "Garrido Outon, Alex"]
[Black "Vega Gutierrez, Sabrina"]
[Result "1-0"]
[ECO "B36"]
[WhiteElo "2448"]
[BlackElo "2392"]
[Annotator "TA"]
[PlyCount "69"]
[EventDate "2024.10.11"]
[EventType "team-tourn"]
[EventCountry "ESP"]
[SourceTitle "playchess.com"]
[Source "ChessBase"]
[SourceQuality "1"]
[WhiteTeam "Extremadura"]
[BlackTeam "Casablanca"]
[TimeControl "5400+30"]

{[%evp 18,69,61,59,61,60,50,46,25,15,30,30,53,-7,18,-6,0,-42,85,76,96,72,130,142,140,139,216,-12,-8,-75,-62,-74,-36,-175,-135,-137,119,81,63,121,66,114,132,100,86,48,103,38,147,107,29995,29996,29996,29997]} 1. e4 {[%emt 0:00:04]} c5 {[%emt 0:00:05]} 2. Nf3 {[%emt 0:00:09]} g6 {[%emt 0:00:10]} 3. d4 {[%emt 0:00:12]} cxd4 {[%emt 0:00:08]} 4. Nxd4 {[%emt 0:00:04]} Nc6 {[%emt 0:00:28]} 5. c4 {[%emt 0:00:14]} Nf6 {[%emt 0:00:21]} 6. Nc3 {[%emt 0:00:10]} d6 {[%emt 0:00:27]} 7. Be2 {[%emt 0:00:10]} Nxd4 {[%emt 0:00:11]} 8. Qxd4 {[%emt 0:00:06]} Bg7 {[%emt 0:00:04]} 9. Be3 {[%emt 0:00:20]} O-O {[%emt 0:00:18]} 10. Qd3 {[%emt 0:00:08] Wit is actiever.} a6 {[%emt 0:02:32][%cal Ob7b5] B36: Siciliaans: Maroczy Bind: Gurgenidze Systeem.} 11. O-O {[%emt 0:00:23] OK} Bd7 {[%emt 0:00:19][%cal Ob7b5] OK} 12. a3 {[%emt 0:00:27]} b5 {[%emt 0:00:33] OK. Wit staat iets beter.} 13. cxb5 {[%emt 0:00:10] OK} axb5 {[%emt 0:00:20]} 14. b4 $146 {[%emt 0:00:21]} ({Predecessor:} 14. Rfc1 Qb8 15. Nxb5 Bxb5 16. Qxb5 Nxe4 17. Ra2 e6 18. a4 d5 19. a5 d4 20. Qxb8 Rfxb8 21. Bf4 e5 22. Bd3 f5 23. Bxe4 {½-½ Willmann,B (2357)-Kahl,F (2414) ST-2021-0-00200}) 14... Qb8 {[%emt 0:00:25] OK} 15. Rfc1 {[%emt 0:04:37] Fout (0.6)} (15. Nxb5 Bxb5 16. Qxb5 Nxe4 $19) (15. Bd4 $14) 15... Bc6 $11 {[%emt 0:17:31] OK} 16. Bf1 {[%emt 0:21:35][%cal Oa1a2]} Rd8 {[%emt 0:23:59]} 17. Bd4 {[%emt 0:17:09][%cal Oc3d5] OK} e5 {[%emt 0:06:41] houdt voorsprong. Fout (1.3)} (17... Qb7 $15) 18. Be3 $16 {[%emt 0:00:06][%cal Oe3g5] Beste (Gemakkelijk)} (18. Nxb5 $2 {verliest.} Bxe4 19. Qb3 exd4 $19) 18... d5 {[%emt 0:06:04] OK} 19. Nxb5 {[%emt 0:05:35] OK} Bxb5 {[%emt 0:08:05] Fout (0.6)} (19... Qb7) 20. Qxb5 {[%emt 0:00:08]} Nxe4 {[%emt 0:00:20] OK} 21. Bb6 {[%emt 0:05:54] OK} Rd6 {[%emt 0:22:59] was een poging waard. Fout (0.8)} (21... Re8 $16) {Enige zet:} 22. Rc6 $2 {[%emt 0:07:57] Gemiste overwinning (2.3)} (22. Bc7 $1 $18 {[%cal Rc7b8]} Qa7 (22... Qxb5 23. Bxb5 Bh6 24. Bxd6 $16) 23. Bxd6 Qxf2+ 24. Kh1) 22... Nc3 $11 {[%emt 0:02:20] OK} (22... Qe8 $5 {vereenvoudigt} 23. Rxd6 Qxb5 24. Bxb5 Nxd6 25. Bf1 d4) 23. Qc5 {[%emt 0:02:41] blijft gelijk. Fout (0.7)} (23. Rxc3 $11 Rxb6 (23... Qxb6 24. Qxb6 Rxb6 25. Rd1 $14) (23... e4 24. Bc5 $11) 24. Qd7 (24. Qxd5 e4 $15)) 23... Rxc6 $17 {[%emt 0:00:30] Beste (Gemakkelijk)} 24. Qxc6 {[%emt 0:00:05][%cal Ob6c7] Sterke dreiging met Bc7!} e4 $1 {[%emt 0:00:40] Wit moet nu ...Qc8 voorkomen. Sterk} {Beter is} 25. Rc1 {[%emt 0:06:34] Fout (1.4)} (25. a4 $15) 25... d4 {[%emt 0:01:41][%cal Ob8c8]} ({Sterker dan} 25... Rxa3 26. Bc7 Qc8 (26... Qxb4 $2 {slaat de verkeerde figuur.} 27. Bd6 $18) 27. b5 $11) 26. b5 {[%emt 0:07:41] [#] Beste} d3 $2 {[%emt 0:01:55][%mdl 8192] blijft op koers. Fout (2.6)} ({Ondeugdelijk is} 26... Rxa3 27. Bc5 Ra8 28. b6 $11) (26... Be5 $1 $17 {[%cal Ob8c8] ...Qc8! zou dodelijk zijn.} 27. g3 Rxa3) 27. Bc7 $16 {[%emt 0:11:12][%cal Bb6c7,Bc7f4,Bf4h6][%mdl 32] EV=16.59. Goes to h6 (dbg)). OK} Qe8 {[%emt 0:00:53] OK} 28. Rxc3 {[%emt 0:02:25] Beste (Gemakkelijk)} Bxc3 {[%emt 0:00:06]} 29. Qxc3 {[%emt 0:00:14]} Qxb5 {[%emt 0:00:13] OK} 30. Bf4 {[%emt 0:00:45] Dreigt mat met Bh6. Beste (Gemakkelijk)} Qa5 {[%emt 0:01:16] OK} 31. Qd4 {[%emt 0:01:53] Wit wil matzetten met Bh6. Onnauwkeurig} {Zwart zou moeten spelen} Qa4 {[%emt 0:00:50] [#] Fout (0.6)} (31... g5 $14 32. Bc1 Rd8) {Wit zou moeten spelen} 32. Qe5 $40 {[%emt 0:00:58][%mdl 128] Wit wil iets hier. Fout (0.7)} (32. Qf6 $1 $16 {Met het idee Bh6 en mat.} Qa6 33. Qe5) {Een sterkere zet voor zwart zou zijn.} 32... Qe8 {[%emt 0:01:48] Fout (1.1)} (32... Rd8 $1 $14) 33. Qb2 {[%emt 0:02:48] met als doel voor Bh6. OK} Qe6 $2 {[%emt 0:00:23][%mdl 8192] Verliest partij (Mat)} (33... Qe7 $16) 34. Bh6 {[%emt 0:00:47][%csl Gh6][%cal Rb2g7] Beste (Gemakkelijk)} f6 {[%emt 0:02:00] OK} 35. Qb7 {[%emt 0:00:07] Blunder waarde: Wit=0.32/Zwart=0.68.  Verliest partij:   	---       	Zwart=1      Gemiste overwinning: 	Wit=1      	---        Fout:        	Wit=4      	Zwart=6      Onnauwkeurig:    	Wit=1      	---        OK:         	Wit=7      	Zwart=11     Beste:        	Wit=5      	Zwart=1      Sterk:        	---       	Zwart=1} 1-0

[Event "ESP-ch Teams Honor 2024"]
[Site "Melilla"]
[Date "2024.10.12"]
[Round "1.12"]
[White "Quintin Navarro, Alberto"]
[Black "Moreno Tejera, Emilio"]
[Result "0-1"]
[ECO "D30"]
[WhiteElo "2378"]
[BlackElo "2422"]
[Annotator "RC"]
[PlyCount "110"]
[EventDate "2024.10.11"]
[EventType "team-tourn"]
[EventCountry "ESP"]
[SourceTitle "playchess.com"]
[Source "ChessBase"]
[SourceQuality "1"]
[WhiteTeam "Casablanca"]
[BlackTeam "Extremadura"]
[TimeControl "5400+30"]

1. d4 {[%emt 0:00:03]} d5 {[%emt 0:00:11]} 2. c4 {[%emt 0:00:41]} e6 {[%emt 0:00:12]} 3. Nf3 {[%emt 0:00:42]} a6 {[%emt 0:00:20]} 4. Bg5 {[%emt 0:03:47]} Be7 {[%emt 0:00:15]} 5. Bxe7 {[%emt 0:00:06]} Nxe7 {[%emt 0:00:08]} 6. Nbd2 {[%emt 0:00:10]} O-O {[%emt 0:00:26]} 7. g3 {[%emt 0:00:03]} Nd7 {[%emt 0:00:21]} 8. Bg2 {[%emt 0:00:06]} b6 {[%emt 0:00:50]} 9. O-O {[%emt 0:01:04]} Bb7 {[%emt 0:00:25]} 10. Qc2 {[%emt 0:07:46]} h6 {[%emt 0:17:47]} 11. b4 {[%emt 0:09:15]} a5 {[%emt 0:14:49]} 12. a3 {[%emt 0:05:39]} Qb8 {[%emt 0:06:47]} 13. e4 {[%emt 0:08:33]} dxe4 {[%emt 0:08:41]} 14. Nxe4 {[%emt 0:01:15]} axb4 {[%emt 0:00:16]} 15. axb4 {[%emt 0:00:08]} b5 {[%emt 0:01:25]} 16. Nc5 {[%emt 0:04:10]} Nxc5 {[%emt 0:05:09]} 17. dxc5 {[%emt 0:00:13]} bxc4 {[%emt 0:03:33]} 18. Qxc4 {[%emt 0:00:48]} Bd5 {[%emt 0:00:41]} 19. Qc3 {[%emt 0:00:31]} Qb7 {[%emt 0:03:41]} 20. Rfb1 {[%emt 0:03:08]} Rxa1 {[%emt 0:12:57]} 21. Rxa1 {[%emt 0:00:24]} Rb8 {[%emt 0:00:09]} 22. Rb1 {[%emt 0:01:25]} Be4 {[%emt 0:00:30]} 23. Rb2 {[%emt 0:07:48]} Qa8 {[%emt 0:05:00]} 24. h4 {[%emt 0:05:57]} Nd5 {[%emt 0:02:01]} 25. Qd2 {[%emt 0:18:12]} Qa3 {[%emt 0:02:11]} 26. Ne5 {[%emt 0:02:43]} Bxg2 {[%emt 0:00:24]} 27. Kxg2 {[%emt 0:00:19]} Rxb4 {[%emt 0:02:04]} 28. Ra2 {[%emt 0:02:30]} Qb3 {[%emt 0:00:41]} 29. Nc6 {[%emt 0:02:50]} Ra4 {[%emt 0:00:43]} 30. Rxa4 {[%emt 0:03:43]} Qxa4 {[%emt 0:00:09]} 31. Ne7+ {[%emt 0:00:17]} Kf8 {[%emt 0:03:36]} 32. Nxd5 {[%emt 0:00:04]} Qc6 {[%emt 0:01:37]} 33. Kg1 {[%emt 0:01:19]} exd5 {[%emt 0:00:36]} 34. Qd4 {[%emt 0:01:53]} Qe6 {[%emt 0:00:39]} 35. Qf4 {[%emt 0:01:25]} Qe1+ {[%emt 0:02:05]} 36. Kh2 {[%emt 0:00:02]} Qe7 {[%emt 0:00:11]} 37. Qb4 {[%emt 0:01:45]} Qd8 {[%emt 0:00:25]} 38. c6+ {[%emt 0:01:51]} Ke8 {[%emt 0:01:43]} 39. Qg4 {[%emt 0:01:22]} Qd6 {[%emt 0:00:42]} 40. Qxg7 {[%emt 0:00:22]} Qxc6 {[%emt 0:00:24]} 41. Qe5+ {[%emt 0:00:37]} Kd7 {[%emt 0:00:32]} 42. h5 {[%emt 0:01:02]} Qd6 {[%emt 0:00:31]} 43. Qf5+ {[%emt 0:01:41]} Ke7 {[%emt 0:00:21]} 44. f4 {[%emt 0:00:50]} Qe6 {[%emt 0:00:56]} 45. Qc2 {[%emt 0:00:12]} Qd6 {[%emt 0:00:38]} 46. Kg2 {[%emt 0:00:54]} d4 {[%emt 0:00:40]} 47. Qe4+ {[%emt 0:00:20]} Kf8 {[%emt 0:00:12]} 48. Kf3 {[%emt 0:01:58]} c5 {[%emt 0:00:16]} 49. g4 {[%emt 0:01:13]} d3 {[%emt 0:01:48]} 50. Ke3 {[%emt 0:00:08]} d2 {[%emt 0:00:53]} 51. Qa8+ {[%emt 0:00:09]} Kg7 {[%emt 0:00:40]} 52. Qa1+ {[%emt 0:00:06]} Kg8 {[%emt 0:00:27]} 53. Ke2 {[%emt 0:02:20]} Qxf4 {[%emt 0:00:27]} 54. Qa8+ {[%emt 0:00:22]} Kg7 {[%emt 0:00:28]} 55. Qa1+ {[%emt 0:00:12]} Qd4 {[%emt 0:00:48]} 0-1

[Event "ESP-ch Teams Honor 2024"]
[Site "Melilla"]
[Date "2024.10.12"]
[Round "1.13"]
[White "Alekseenko, Kirill"]
[Black "Deac, Bogdan-Daniel"]
[Result "1-0"]
[ECO "C48"]
[WhiteElo "2679"]
[BlackElo "2691"]
[Annotator "TA"]
[PlyCount "61"]
[EventDate "2024.10.11"]
[EventType "team-tourn"]
[EventCountry "ESP"]
[SourceTitle "playchess.com"]
[Source "ChessBase"]
[SourceQuality "1"]
[WhiteTeam "Silla"]
[BlackTeam "Costa Calida"]
[TimeControl "5400+30"]

{[%evp 9,61,-4,0,-3,0,-6,-3,-10,0,-7,0,-15,22,19,22,14,27,18,54,62,50,49,79,70,82,74,71,29,22,60,42,41,110,87,127,129,187,175,278,250,325,329,339,317,427,414,546,966,952,936,811,545,29991,29992]} 1. e4 {[%emt 0:00:06]} e5 {[%emt 0:00:02]} 2. Nf3 {[%emt 0:00:27]} Nf6 {[%emt 0:00:14]} 3. Nc3 {[%emt 0:00:39]} Nc6 {[%emt 0:00:02]} 4. Bb5 {[%emt 0:00:18]} Nd4 {[%emt 0:04:45]} 5. Be2 {[%emt 0:00:23]} d6 {[%emt 0:06:20]} 6. O-O {[%emt 0:01:02]} Be7 {[%emt 0:04:20]} 7. d3 {[%emt 0:00:16]} Nxe2+ {[%emt 0:01:15]} 8. Nxe2 {[%emt 0:00:24] Die Stellung ist ausgeglichen.} O-O {[%emt 0:02:05]} 9. Ng3 {[%emt 0:04:15]} Re8 {[%emt 0:00:30]} 10. b3 {[%emt 0:03:54]} d5 {[%emt 0:12:04]} 11. exd5 {[%emt 0:11:35]} Nxd5 {[%emt 0:11:19]} 12. Bb2 {[%emt 0:07:54]} Bd6 {[%emt 0:19:15]} 13. Re1 {[%emt 0:07:34][%cal Od3d4]} Bg4 {[%emt 0:06:39]} 14. h3 {[%emt 0:01:32]} Bxf3 {[%emt 0:02:02]} 15. Qxf3 {[%emt 0:00:06]} c6 {[%emt 0:00:40]} 16. Nf5 {[%emt 0:03:50]} Bc7 {[%emt 0:02:49]} 17. d4 {[%emt 0:06:08][%cal Bd3d4,Bd4e5][%mdl 32]} Qf6 {[%emt 0:01:11][%cal Oh7h5]} 18. Qe4 {[%emt 0:05:38][%cal Rd4e5]} (18. dxe5 $5 Bxe5 19. Qe4 Bh2+ 20. Kxh2 Rxe4 21. Bxf6 Nxf6 22. Nd6 Rxe1 23. Rxe1 $14) 18... Ba5 {[%emt 0:00:18]} 19. dxe5 $40 {[%emt 0:01:06][%mdl 128] Weiss hat was vor.} Bxe1 {[%emt 0:04:18]} 20. Rxe1 {[%emt 0:00:40]} Qe6 {[%emt 0:06:01]} (20... Qg6 $14) 21. Nd6 {[%emt 0:06:43][%mdl 1024] Weiss hat starke Kompensation.} Re7 {[%emt 0:01:15]} 22. c4 {[%emt 0:01:35] Weiß steht deutlich aktiver.} Nb6 {[%emt 0:03:40]} (22... Nb4 $16 {ist wohl besser.}) 23. f4 $18 {[%emt 0:03:42][%cal Bf2f4,Bf4f5][%mdl 32] Schwarz hat schwache schwarze Felder} Qd7 {[%emt 0:00:34]} (23... Nc8 {war angesagt.} 24. Nf5 Re8) 24. Nf5 {[%emt 0:05:23][%cal Of5g7] Droht stark Nxg7!} ({Auf keinen Fall} 24. f5 $6 f6 $18) 24... Re6 {[%emt 0:00:46] [#]} 25. Nxg7 $1 {[%emt 0:01:43][%mdl 512]} Kxg7 {[%emt 0:00:05]} 26. f5 {[%emt 0:00:05]} Rg8 {[%emt 0:00:05]} 27. Qf3 {[%emt 0:05:29][%cal Oe1d1] Und Rd1! würde nun gewinnen.} Qe8 {[%emt 0:00:20]} (27... Qd2 28. fxe6 (28. Bc3 Qh6 $18) 28... h6 29. exf7 (29. Qxf7+ Kh8 $18) (29. Bc3 Qxe1+ 30. Bxe1 fxe6 $18) 29... Qxb2 30. e6 (30. fxg8=B Qd4+ 31. Kh1 Kh8 32. e6 Qd2 33. Qf6+ Kxg8 34. Rf1 Qg5 35. Qxg5+ hxg5) (30. fxg8=N Qd4+ 31. Kh1 Qh4 $18) (30. fxg8=Q+ Kxg8 31. e6 Qd4+ 32. Kh1 Qh4 33. Qf7+ Kh8 34. Rf1 Qg5) (30. Qf6+ Kf8 31. fxg8=N+ Kxg8 32. Qg6+ Kh8 33. Rf1 Qd4+ 34. Kh1 Nd7 35. Qe8+ Kh7) 30... Qd4+ 31. Kh1 $18) 28. fxe6 {[%emt 0:00:35]} Qxe6 {[%emt 0:00:01]} 29. Rd1 {[%emt 0:00:17][%cal Be1d1,Bd1d7,Bd7f7][%mdl 32]} Nc8 {[%emt 0:00:01] Es drohte Rd6} 30. Rd7 {[%emt 0:00:53][%cal Od7f7] Weiss will mit Rxf7+! Matt setzen.} b6 {[%emt 0:00:27] [#]} 31. Rxf7+ $3 {[%emt 0:00:37][%mdl 512] Gewichteter Fehlerwert: Weiß=0.23 (präzise) /Schwarz=0.60.  Fehler:       	---       	Schwarz=3     Ungenau:       	Weiß=1     	Schwarz=6     OK:         	Weiß=9     	Schwarz=6     Bester:       	Weiß=3     	---} 1-0

[Event "ESP-ch Teams Honor 2024"]
[Site "Melilla"]
[Date "2024.10.12"]
[Round "1.14"]
[White "Amin, Bassem"]
[Black "Shevchenko, Kirill"]
[Result "1/2-1/2"]
[ECO "B30"]
[WhiteElo "2636"]
[BlackElo "2656"]
[Annotator "TA"]
[PlyCount "71"]
[EventDate "2024.10.11"]
[EventType "team-tourn"]
[EventCountry "ESP"]
[SourceTitle "playchess.com"]
[Source "ChessBase"]
[SourceQuality "1"]
[WhiteTeam "Costa Calida"]
[BlackTeam "Silla"]
[TimeControl "5400+30"]

{[%evp 11,71,0,28,14,19,22,22,8,0,7,0,0,0,0,4,7,19,-12,-8,-22,-32,-33,-21,-20,-22,-24,-29,-25,-42,-72,-76,-64,-16,-37,-15,-15,-4,-24,0,0,-7,-10,-8,-27,-26,-24,0,-5,14,15,13,0,0,0,0,0,0,0,0,0,0,0]} 1. e4 {[%emt 0:00:49]} c5 {[%emt 0:00:06]} 2. Nf3 {[%emt 0:00:26]} Nc6 {[%emt 0:00:05]} 3. Bb5 {[%emt 0:00:07]} e6 {[%emt 0:00:07]} 4. Bxc6 {[%emt 0:05:22]} bxc6 {[%emt 0:02:55]} 5. d3 {[%emt 0:00:06]} Qc7 {[%emt 0:00:03]} 6. O-O {[%emt 0:04:31]} Ne7 {[%emt 0:00:10]} 7. Ng5 {[%emt 0:05:43]} h6 {[%emt 0:05:14]} 8. Nh3 {[%emt 0:02:03]} d5 {[%emt 0:00:03]} 9. c4 {[%emt 0:07:59]} e5 {[%emt 0:08:13]} 10. f4 {[%emt 0:01:00]} Bxh3 {[%emt 0:05:36]} 11. gxh3 {[%emt 0:00:07]} dxe4 {[%emt 0:00:25]} 12. dxe4 {[%emt 0:00:34]} exf4 {[%emt 0:02:06]} 13. Bxf4 {[%emt 0:00:46]} Qc8 {[%emt 0:01:14]} 14. Qg4 {[%emt 0:12:11]} Ng6 {[%emt 0:03:18]} 15. Bg3 {[%emt 0:02:11]} Qxg4 {[%emt 0:11:57]} 16. hxg4 {[%emt 0:00:07]} Rd8 {[%emt 0:00:10]} 17. Nc3 {[%emt 0:01:54]} Bd6 {[%emt 0:05:06]} 18. Bxd6 {[%emt 0:03:49]} Rxd6 {[%emt 0:00:02]} 19. Rf5 {[%emt 0:02:28] Wards off Ne5} O-O {[%emt 0:07:16]} 20. Raf1 {[%emt 0:16:34]} f6 {[%emt 0:03:42]} 21. Rxc5 {[%emt 0:00:17]} Ne5 {[%emt 0:00:51]} (21... Rfd8 $15 22. Ra5 Rd2) 22. Ra5 {[%emt 0:06:14]} Rfd8 {[%emt 0:06:31]} 23. Rxa7 {[%emt 0:01:09]} Rd2 {[%emt 0:01:06]} 24. Rf2 {[%emt 0:03:30]} Nxg4 {[%emt 0:05:44]} 25. Rxd2 {[%emt 0:01:25]} Rxd2 $11 {[%emt 0:00:13][%mdl 4096] Endgame. KRN-KRN} 26. h3 {[%emt 0:00:08]} Ne5 {[%emt 0:02:40]} 27. Rb7 {[%emt 0:00:24]} Nxc4 {[%emt 0:08:01]} 28. a4 {[%emt 0:00:33][%cal Ba2a4,Ba4a5,Ba5a6,Ba6a7][%mdl 32]} Kh7 {[%emt 0:02:58]} ({Much weaker is} 28... Rxb2 29. Rxb2 Nxb2 30. a5 $14) 29. Rb4 {[%emt 0:03:04] The position is equal.} Nxb2 {[%emt 0:08:52] ...Rc2 is the strong threat.} 30. a5 {[%emt 0:00:27] [#] a6 would now be deadly.} c5 {[%emt 0:02:48]} 31. Rb7 {[%emt 0:03:25][%mdl 1024] White has compensation.} Nc4 {[%emt 0:03:02]} 32. a6 {[%emt 0:03:11]} Ne5 {[%emt 0:00:20]} 33. Kf1 {[%emt 0:02:30]} Nf3 {[%emt 0:00:16]} 34. a7 {[%emt 0:03:07]} Nh2+ {[%emt 0:00:05]} 35. Ke1 {[%emt 0:00:04]} (35. Kg1 $5) 35... Nf3+ {[%emt 0:00:03]} 36. Kf1 {[%emt 0:00:04] Weighted Error Value: White=0.07 (flawless) /Black=0.04 (flawless) .  Mistake:       	---       	Black=1      Inaccurate:     	White=2     	---        OK:         	White=10    	Black=17     Best:        	White=3     	Black=2} 1/2-1/2

[Event "ESP-ch Teams Honor 2024"]
[Site "Melilla"]
[Date "2024.10.12"]
[Round "1.15"]
[White "Korobov, Anton"]
[Black "Ibarra Jerez, Jose Carlos"]
[Result "1-0"]
[ECO "B12"]
[WhiteElo "2660"]
[BlackElo "2559"]
[Annotator "TA"]
[PlyCount "89"]
[EventDate "2024.10.11"]
[EventType "team-tourn"]
[EventCountry "ESP"]
[SourceTitle "playchess.com"]
[Source "ChessBase"]
[SourceQuality "1"]
[WhiteTeam "Silla"]
[BlackTeam "Costa Calida"]
[TimeControl "5400+30"]

{[%evp 11,89,8,31,0,49,39,45,40,50,41,83,77,93,77,73,80,129,67,56,43,76,80,74,70,72,80,118,126,152,148,183,136,199,203,245,260,295,265,258,275,250,256,489,475,433,286,272,256,230,268,425,385,383,400,400,340,403,390,407,404,375,321,417,414,424,418,496,489,777,773,751,760,1413,1481,1588,1752,1591,1569,1187,973]} 1. e4 {[%emt 0:00:04]} c6 {[%emt 0:00:42]} 2. d4 {[%emt 0:01:09]} d5 {[%emt 0:00:41]} 3. e5 {[%emt 0:00:20]} Bf5 {[%emt 0:01:27]} 4. Nf3 {[%emt 0:00:07]} e6 {[%emt 0:00:19]} 5. Be2 {[%emt 0:00:05]} Ne7 {[%emt 0:00:21]} 6. O-O {[%emt 0:00:18]} h6 {[%emt 0:00:06][%cal Oc6c5]} 7. a4 {[%emt 0:03:29] B12: Caro-Kann: Advance Variation.} a5 {[%emt 0:03:43]} (7... c5 $11) 8. c3 {[%emt 0:01:26]} Nd7 {[%emt 0:02:22]} 9. Na3 {[%emt 0:03:20]} Nc8 {[%emt 0:20:08]} 10. Nc2 {[%emt 0:02:29]} Ncb6 $146 {[%emt 0:01:25]} ({Predecessor:} 10... Be7 11. Ne3 Bg6 12. Bd3 Bxd3 13. Qxd3 c5 14. b3 cxd4 15. cxd4 Na7 16. Bd2 Nc6 {0-1 Wagner,D (2570)-Wojtaszek,R (2696) Titled Tuesday intern op 27th Sep Early blitz 2022 (10)}) 11. Ne3 {[%emt 0:02:38]} Bh7 {[%emt 0:01:00]} 12. Ne1 {[%emt 0:01:22]} Be7 {[%emt 0:04:55]} 13. f4 {[%emt 0:05:03]} f5 {[%emt 0:01:53]} (13... O-O $142) 14. exf6 {[%emt 0:06:35]} ({Better is} 14. g4 $16) 14... Nxf6 $14 {[%emt 0:01:27]} 15. Bh5+ {[%emt 0:00:51]} Nxh5 {[%emt 0:04:41]} 16. Qxh5+ {[%emt 0:00:13]} Kd7 {[%emt 0:01:48]} 17. Nf3 {[%emt 0:01:53]} Bd6 {[%emt 0:04:15][%cal Od7c7]} 18. b3 {[%emt 0:04:00]} Rf8 {[%emt 0:04:16][%cal Od7c7]} 19. c4 {[%emt 0:08:26]} Nc8 {[%emt 0:12:17]} (19... Rxf4 $2 20. c5 $18) 20. Qg4 {[%emt 0:14:08][%csl LRd5,LRg7]} Bd3 {[%emt 0:06:12]} 21. Re1 {[%emt 0:03:02]} (21. Rf2 $18) 21... Ne7 {[%emt 0:04:33]} (21... Qf6 $16) 22. Ba3 $18 {[%emt 0:03:51]} (22. Qxg7 Be4 23. c5 (23. Qxh6 Rh8 $17) 23... Rg8 24. Qxh6 Rg6 $16) 22... Rxf4 {[%emt 0:02:13]} 23. Qxg7 {[%emt 0:03:00]} Qf8 {[%emt 0:06:24]} 24. Ne5+ {[%emt 0:01:52]} Bxe5 {[%emt 0:00:04]} 25. Qxe5 {[%emt 0:00:17]} Ng6 {[%emt 0:00:27] Dodges cxd5} 26. Ng4 {[%emt 0:04:31]} Qf5 $2 {[%emt 0:05:14]} (26... Qf7 {might work better.}) 27. Qd6+ $18 {[%emt 0:01:20]} Kc8 {[%emt 0:00:01]} 28. Nxh6 {[%emt 0:01:06]} (28. Qxe6+ Qxe6 29. Rxe6 Rxg4 $18) 28... Qf6 {[%emt 0:01:50]} 29. Qxe6+ {[%emt 0:01:59]} (29. Rxe6 $2 Rf1+ 30. Rxf1 Qxf1#) 29... Qxe6 {[%emt 0:00:09]} 30. Rxe6 {[%emt 0:00:04]} Ra6 {[%emt 0:02:32]} (30... Kd7 {was worth a try.} 31. cxd5 Rxd4) 31. Rd1 {[%emt 0:05:37]} Be4 {[%emt 0:02:21]} 32. Bd6 {[%emt 0:03:47]} Rh4 {[%emt 0:01:50]} 33. Nf7 {[%emt 0:00:36]} Kd7 {[%emt 0:03:39]} 34. Rf6 {[%emt 0:00:36]} Rh5 {[%emt 0:01:17]} 35. c5 {[%emt 0:01:21]} Ra8 {[%emt 0:00:25]} 36. Bg3 {[%emt 0:02:57]} Rg8 {[%emt 0:00:42]} 37. Nd6 {[%emt 0:00:19]} Ne7 {[%emt 0:00:16]} 38. Rdf1 {[%emt 0:02:14] Dodges Nf5} Rg7 {[%emt 0:00:38]} 39. Rf8 {[%emt 0:02:38][%cal Of8b8] Threatens to win with Rb8!} Ng6 {[%emt 0:00:53]} (39... Rg8 $142 40. Rxg8 (40. Nxb7 Rhg5 $18) 40... Nxg8 41. Rf7+ (41. Nxb7 Rf5 $18) 41... Ke6) 40. Rb8 $18 {[%emt 0:01:00]} Ke6 {[%emt 0:00:01]} 41. Nxb7 {[%emt 0:00:55] Hoping for Nd8+.} Ne7 {[%emt 0:00:29]} 42. Nd8+ {[%emt 0:00:30]} Kd7 {[%emt 0:00:04]} 43. Rb7+ {[%emt 0:00:17]} Ke8 {[%emt 0:00:51]} 44. Ne6 {[%emt 0:00:38]} Rg8 {[%emt 0:00:32] Dodges Rf8+} 45. Rb8+ {[%emt 0:00:42]} 1-0

[Event "ESP-ch Teams Honor 2024"]
[Site "Melilla"]
[Date "2024.10.12"]
[Round "1.16"]
[White "Muzychuk, Anna"]
[Black "Yuffa, Daniil"]
[Result "*"]
[ECO "B30"]
[WhiteElo "2524"]
[BlackElo "2608"]
[Annotator "RC"]
[PlyCount "33"]
[EventDate "2024.10.11"]
[EventType "team-tourn"]
[EventCountry "ESP"]
[SourceTitle "playchess.com"]
[Source "ChessBase"]
[SourceQuality "1"]
[WhiteTeam "Costa Calida"]
[BlackTeam "Silla"]
[TimeControl "5400+30"]

1. e4 {[%emt 0:00:03]} c5 {[%emt 0:00:13]} 2. Nf3 {[%emt 0:00:06]} Nc6 {[%emt 0:00:07]} 3. Bb5 {[%emt 0:00:13]} d6 {[%emt 0:00:26]} 4. O-O {[%emt 0:00:41]} Bd7 {[%emt 0:00:33]} 5. Re1 {[%emt 0:00:29]} Nf6 {[%emt 0:00:11]} 6. c3 {[%emt 0:01:32]} a6 {[%emt 0:00:09]} 7. Bf1 {[%emt 0:00:18]} Bg4 {[%emt 0:00:28]} 8. h3 {[%emt 0:01:57]} Bxf3 {[%emt 0:00:08]} 9. Qxf3 {[%emt 0:00:03]} e6 {[%emt 0:00:19]} 10. d3 {[%emt 0:02:06]} Be7 {[%emt 0:00:55]} 11. Nd2 {[%emt 0:01:45]} O-O {[%emt 0:00:39]} 12. Qd1 {[%emt 0:01:42]} b5 {[%emt 0:01:33]} 13. Nf3 {[%emt 0:00:39]} b4 {[%emt 0:07:34]} 14. Qa4 {[%emt 0:10:13]} Qd7 {[%emt 0:03:58]} 15. Bf4 {[%emt 0:08:16]} Rfd8 {[%emt 0:04:35]} 16. Qc2 {[%emt 0:05:30]} a5 {[%emt 0:13:20]} 17. Rad1 {[%emt 0:04:41]} *